bitfinex-derivatives/quotes_ETHF0:USTF0_20240830
["timestamp","ask_amount","ask_price","bid_price","bid_amount"]
[1725040706868,5.93108824,2468.0,2467.8,0.40522]
[1725040707063,5.93108824,2468.0,2467.9,0.40522]
[1725040708982,5.93108824,2468.0,2467.8,0.40522]
[1725040709276,5.93108824,2468.0,2467.6,0.00607607]
[1725040709277,5.93108824,2468.0,2467.9,0.40522]
[1725040710275,5.93108824,2468.0,2467.8,0.40522]
[1725040710686,5.93108824,2468.0,2467.9,0.40522]
[1725040711668,6.33629824,2468.0,2467.8,0.40523]
[1725040711873,0.40522,2467.9,2467.6,0.00607607]
[1725040712069,5.93108824,2468.0,2467.6,0.41133607]
[1725040712377,4.69501914,2467.8,2467.6,0.41133607]
[1725040712575,0.40524,2467.8,2467.6,0.41133607]
[1725040712774,4.36205076,2467.7,2467.6,0.41133607]
[1725040713380,5.79792629,2467.7,2467.6,0.41133607]
[1725040713574,6.20317629,2467.7,2467.6,0.00607607]
[1725040713780,1.84112553,2467.7,2467.6,0.00607607]
[1725040714077,5.79792629,2467.7,2467.6,0.41134607]
[1725040715773,6.20317629,2467.7,2467.6,0.00607607]
[1725040715982,0.40528,2467.6,2467.0,1.01342]
[1725040716177,0.3877,2467.5,2467.4,0.4053]
[1725040716371,1.43587553,2467.7,2467.6,0.40527]
[1725040716569,0.58941469,2468.0,2467.6,0.40527]
[1725040716570,0.18420469,2468.0,2467.9,0.40522]
[1725040716773,1.43587553,2468.0,2467.9,0.40522]
[1725040716973,6.08596382,2468.0,2467.9,0.40522]
[1725040718371,6.08596382,2468.0,2467.7,3.21387607]
[1725040718575,0.40523,2467.8,2467.7,3.21387607]
[1725040718784,1.41832,2467.8,2467.7,3.21387607]
[1725040718975,1.41832,2467.8,2467.4,0.40529]
[1725040718976,1.01313,2467.7,2467.1,3.2078]
[1725040719175,0.40533,2467.3,2467.1,0.40535]
[1725040719380,3.5,2467.2,2467.1,0.40535]
[1725040719578,4.22108,2467.4,2467.3,0.40532]
[1725040719579,1.43587553,2467.4,2467.3,0.40532]
[1725040719979,0.3573,2467.6,2467.5,0.40528]
[1725040720285,6.34108839,2467.6,2467.5,0.40528]
[1725040720594,5.98378839,2467.6,2467.5,0.40528]
[1725040721682,4.127,2467.7,2467.6,0.40527]
[1725040721889,1.43587553,2467.7,2467.6,0.40527]
[1725040722088,0.7177,2467.9,2467.6,1.01318]
[1725040722284,2.15357553,2467.9,2467.6,1.01318]
[1725040722484,4.69145165,2467.8,2467.7,0.40525]
[1725040722882,6.12732718,2467.8,2467.7,0.40525]
[1725040725579,6.12732718,2467.8,2467.7,1.41838]
[1725040726386,4.69145165,2467.8,2467.7,2.43151]
[1725040729191,4.69145165,2467.8,2467.7,1.41838]
[1725040729593,6.12732718,2467.8,2467.7,0.40525]
[1725040729983,6.53255718,2467.8,2467.7,0.40525]
[1725040730284,6.12732718,2467.8,2467.7,0.40525]
[1725040730598,6.53255718,2467.8,2467.7,0.40525]
[1725040731383,0.40525,2467.7,2467.6,3.61306]
[1725040731589,5.06513,2467.7,2467.3,3.2078]
[1725040731784,5.06513,2467.7,2467.5,0.40528]
[1725040731785,0.40528,2467.6,2467.5,0.40528]
[1725040732194,6.07270454,2467.6,2467.5,0.40528]
[1725040732388,5.66742454,2467.6,2467.5,0.40528]
[1725040732593,0.3604,2467.9,2467.8,0.40523]
[1725040732794,0.40524,2467.8,2467.7,0.40524]
[1725040732992,6.36086432,2467.8,2467.7,0.40524]
[1725040733196,1.43587553,2467.8,2467.7,0.40524]
[1725040733698,10.50946781,2467.8,2467.7,0.40524]
[1725040734795,11.11733781,2467.8,2467.3,3.2078]
[1725040735000,0.40529,2467.5,2467.4,0.4053]
[1725040735299,5.08609395,2467.5,2467.4,0.4053]
[1725040735486,10.57476948,2467.5,2467.4,0.4053]
[1725040735692,10.57476948,2467.5,2467.3,3.2078]
[1725040735693,10.57476948,2467.5,2467.3,3.6131]
[1725040735892,6.52196948,2467.5,2467.4,0.4053]
[1725040736196,6.11668948,2467.5,2467.4,0.4053]
[1725040736399,6.11668948,2467.5,2467.4,1.41856]
[1725040736695,3.61304,2467.8,2467.7,0.40525]
[1725040736898,5.04891553,2467.8,2467.7,0.40525]
[1725040737095,13.36757377,2467.8,2467.7,0.40525]
[1725040737302,6.10777377,2467.8,2467.7,0.40525]
[1725040740395,6.10777377,2467.8,2467.7,1.41838]
[1725040740802,6.10777377,2467.8,2467.7,0.40525]
[1725040741497,6.51300377,2467.8,2467.7,0.40525]
[1725040741697,6.10777377,2467.8,2467.7,0.40525]
[1725040742509,6.10777377,2467.8,2467.7,1.00673993]
[1725040742694,6.51300377,2467.8,2467.7,1.00673993]
[1725040742900,6.51300377,2467.8,2467.4,1.01324]
[1725040743101,6.10777377,2467.8,2467.7,0.40525]
[1725040743298,6.10777377,2467.8,2467.7,1.00676857]
[1725040743504,6.10777377,2467.8,2467.7,3.30509166]
[1725040743712,6.10777377,2467.8,2467.7,4.31822166]
[1725040743911,6.10777377,2467.8,2467.7,4.96391704]
[1725040744110,6.10777377,2467.8,2467.7,4.31822166]
[1725040744408,6.10777377,2467.8,2467.7,4.96398272]
[1725040744603,6.10777377,2467.8,2467.7,6.01769131]
[1725040744806,6.10777377,2467.8,2467.7,4.31822166]
[1725040745207,6.10777377,2467.8,2467.7,6.01769464]
[1725040745407,6.10777377,2467.8,2467.7,6.01753078]
[1725040746010,6.10777377,2467.8,2467.7,5.00440078]
[1725040746615,6.10777377,2467.8,2467.7,5.00460663]
[1725040747204,4.67189824,2467.8,2467.7,10.06973663]
[1725040747407,3.91127607,2468.1,2468.0,1.41821]
[1725040747408,0.00607607,2468.1,2468.0,1.41821]
[1725040747613,0.00607607,2468.1,2468.0,6.02453426]
[1725040747909,0.00607607,2468.1,2468.0,19.6592359]
[1725040748101,0.00607607,2468.1,2468.0,22.69646669]
[1725040748305,0.00607607,2468.1,2468.0,21.10473317]
[1725040748519,0.00607607,2468.1,2468.0,19.07795408]
[1725040748717,0.00607607,2468.1,2468.0,17.05125214]
[1725040748919,0.00607607,2468.1,2468.0,18.16881266]
[1725040749121,0.00607607,2468.1,2468.0,19.87130751]
[1725040750824,0.00607607,2468.1,2468.0,18.28054433]
[1725040751023,0.00607607,2468.1,2468.0,13.65750751]
[1725040751218,0.00607607,2468.1,2468.0,12.06674433]
[1725040751425,0.00607607,2468.1,2468.0,13.65750751]
[1725040751630,0.00607607,2468.1,2468.0,21.6265584]
[1725040751929,8.21e-06,2468.1,2468.0,26.4964578]
[1725040752118,8.21e-06,2468.1,2468.0,30.54917624]
[1725040752319,8.21e-06,2468.1,2468.0,29.07438728]
[1725040752522,0.3835,2468.9,2468.8,0.40507]
[1725040752730,1.81937553,2468.9,2468.8,0.40507]
[1725040752921,6.44197039,2468.9,2468.8,1.00579381]
[1725040753227,1.81937553,2468.9,2468.8,0.40507]
[1725040753418,6.65409617,2468.9,2468.8,0.40507]
[1725040753622,0.40507,2468.8,2468.7,3.61288]
[1725040753820,3.90507,2468.8,2468.7,3.61289]
[1725040754020,13.82101617,2468.8,2468.7,3.61289]
[1725040754217,10.32101617,2468.8,2468.7,3.61289]
[1725040754421,10.32101617,2468.8,2468.7,3.2078]
[1725040754634,10.32101617,2468.8,2468.7,3.61289]
[1725040754834,5.86554617,2468.8,2468.7,0.40509]
[1725040755126,6.27061617,2468.8,2468.7,0.40509]
[1725040755527,5.86554617,2468.8,2468.7,0.40509]
[1725040755917,19.41594617,2468.8,2468.6,0.00607607]
[1725040756133,1.41793,2468.5,2468.4,3.2078]
[1725040756321,4.91793,2468.5,2468.4,3.2078]
[1725040756525,13.63047752,2468.5,2468.4,3.2078]
[1725040756933,14.64328752,2468.5,2468.4,3.2078]
[1725040757132,13.63047752,2468.5,2468.4,3.2078]
[1725040757524,0.40514,2468.4,2468.2,0.41123607]
[1725040757723,0.3585,2468.3,2468.2,0.41123607]
[1725040757919,4.69706351,2468.3,2468.2,0.41123607]
[1725040758123,6.13293904,2468.3,2468.2,0.41123607]
[1725040758641,6.53808904,2468.3,2468.2,0.00607607]
[1725040759534,10.58928904,2468.3,2468.2,0.00607607]
[1725040759728,10.58928904,2468.3,2468.2,0.41124607]
[1725040759729,6.13293904,2468.3,2468.2,0.41124607]
[1725040760321,6.13293904,2468.3,2468.2,0.00607607]
[1725040760322,10.58928904,2468.3,2468.2,0.00607607]
[1725040760725,21.10217904,2468.3,2468.2,0.00607607]
[1725040760936,21.10217904,2468.3,2467.7,3.2078]
[1725040760937,0.40521,2468.0,2467.7,3.2078]
[1725040761136,0.4052,2468.1,2467.8,0.60112557]
[1725040761339,4.53332516,2467.9,2467.8,0.40523]
[1725040761540,4.97311236,2468.0,2467.8,0.40523]
[1725040761839,0.4052,2468.0,2467.7,3.61304]
[1725040762028,4.56791236,2467.9,2467.7,3.61304]
[1725040762229,4.56791236,2467.9,2467.8,0.40523]
[1725040762424,6.00378789,2467.9,2467.8,0.40523]
[1725040763830,6.00378789,2467.9,2467.7,3.61304]
[1725040764229,6.40901789,2467.9,2467.7,3.61304]
[1725040764736,0.40523,2467.8,2467.7,3.2078]
[1725040764938,0.77233,2467.8,2467.7,3.2078]
[1725040765137,6.7818742,2467.8,2467.7,3.2078]
[1725040765341,6.3766442,2467.8,2467.7,3.80892907]
[1725040766340,6.7818742,2467.8,2467.7,3.80892907]
[1725040766543,6.7818742,2467.8,2467.7,0.60112907]
[1725040766740,10.8338742,2467.8,2467.6,0.40526]
[1725040766941,0.3837,2467.7,2467.6,0.40526]
[1725040767137,0.3837,2467.7,2467.6,1.00646713]
[1725040767345,6.33535063,2467.7,2467.6,1.00646713]
[1725040768044,6.33535063,2467.7,2467.4,3.2078]
[1725040768247,0.40527,2467.6,2467.5,1.0065275]
[1725040768435,1.43587553,2467.6,2467.5,1.0065275]
[1725040768635,5.80584112,2467.6,2467.5,1.0065275]
[1725040769545,6.21111112,2467.6,2467.5,1.0065275]
[1725040769744,5.80584112,2467.6,2467.5,1.0065275]
[1725040769942,6.21111112,2467.6,2467.5,0.6012475]
[1725040770147,6.21111112,2467.6,2467.1,1.0590245]
[1725040770148,0.40533,2467.2,2467.1,1.0590245]
[1725040770335,1.01334,2467.2,2466.8,4.2668245]
[1725040770538,1.01334,2467.2,2466.9,1.41869954]
[1725040770539,0.40536,2467.1,2466.9,1.41869954]
[1725040770738,0.40536,2467.1,2466.7,3.2078]
[1725040770739,3.5,2467.1,2467.0,0.60163293]
[1725040770935,0.4054,2466.8,2466.6,1.4644445]
[1725040771140,0.4054,2466.8,2466.7,0.60180729]
[1725040771450,0.4054,2466.8,2466.7,0.60185893]
[1725040771451,6.24650286,2466.8,2466.7,0.60185893]
[1725040771640,5.84110286,2466.8,2466.7,0.60185893]
[1725040771837,6.24650286,2466.8,2466.7,0.60185893]
[1725040772038,1.01355,2466.7,2466.3,0.40547]
[1725040772334,4.36723276,2466.6,2466.5,0.40545]
[1725040772756,6.20853829,2466.6,2466.4,0.40545]
[1725040772940,6.20853829,2466.6,2466.5,0.40545]
[1725040772941,5.80310829,2466.6,2466.5,0.40545]
[1725040773135,1.43587553,2466.6,2466.5,0.40545]
[1725040773342,5.7256757,2466.6,2466.5,0.40545]
[1725040773847,6.1311057,2466.6,2466.2,3.2078]
[1725040774050,5.7256757,2466.6,2466.5,0.40545]
[1725040776547,5.7256757,2466.6,2466.5,3.61325]
[1725040778946,6.1311057,2466.6,2466.5,3.2078]
[1725040779147,11.1990957,2466.6,2466.5,3.2078]
[1725040779455,13.6855057,2466.6,2466.5,3.2078]
[1725040780845,10.1855057,2466.6,2466.5,3.61325]
[1725040781041,5.7256757,2466.6,2466.5,3.61325]
[1725040781459,5.7256757,2466.6,2466.5,3.2078]
[1725040781659,5.7256757,2466.6,2466.5,3.61325]
[1725040782149,0.00607607,2466.7,2466.6,1.41902]
[1725040782346,0.00607607,2466.7,2466.6,6.48701]
[1725040782948,0.00607607,2466.7,2466.6,5.47342]
[1725040783856,0.00607607,2466.7,2466.6,15.98701]
[1725040784360,1.21812577,2467.6,2467.0,1.01341]
[1725040784550,1.21812577,2467.6,2467.0,3.2078]
[1725040784551,2.6540013,2467.6,2467.0,3.2078]
[1725040784855,4.27314765,2467.3,2467.2,0.40533]
[1725040785048,0.40531,2467.4,2467.3,0.40532]
[1725040785249,4.27314765,2467.3,2467.2,0.40532]
[1725040785558,6.11433318,2467.4,2467.2,0.40532]
[1725040785758,1.84118553,2467.4,2467.2,0.40532]
[1725040785946,4.33199353,2467.3,2467.2,0.40532]
[1725040786360,5.76786906,2467.3,2467.2,0.40532]
[1725040786856,1.43587553,2467.3,2467.2,0.40532]
[1725040787058,5.80078604,2467.3,2467.2,0.40532]
[1725040787949,4.36491051,2467.3,2467.2,0.40532]
[1725040788345,4.36491051,2467.3,2467.2,5.47146]
[1725040788550,0.21102184,2467.6,2467.5,0.40528]
[1725040788763,1.64689737,2467.6,2467.5,0.40528]
[1725040789063,1.64689737,2467.6,2467.1,1.01944607]
[1725040789064,0.4053,2467.4,2467.2,0.40532]
[1725040789364,2.66008737,2467.6,2467.3,0.40532]
[1725040789663,4.64287851,2467.4,2467.3,0.40532]
[1725040790053,5.48867553,2467.4,2467.3,0.40532]
[1725040790355,10.13155404,2467.4,2467.3,0.40532]
[1725040790555,10.49975404,2467.4,2467.3,0.40532]
[1725040792357,10.90505404,2467.4,2467.2,0.40532]
[1725040792568,6.85226404,2467.4,2467.2,0.40533]
[1725040793254,0.40532,2467.3,2467.2,0.40533]
[1725040793451,0.40532,2467.3,2467.1,0.41141607]
[1725040793759,0.40533,2467.2,2467.1,0.41141607]
[1725040793955,0.40533,2467.2,2467.1,0.00607607]
[1725040794150,6.54124256,2467.2,2467.1,0.00607607]
[1725040794564,6.54124256,2467.2,2467.1,0.41142607]
[1725040795263,6.54124256,2467.2,2467.1,0.00607607]
[1725040795464,10.59484256,2467.2,2467.1,0.00607607]
[1725040796052,10.59484256,2467.2,2467.1,0.41142607]
[1725040796261,10.18951256,2467.2,2467.1,0.41142607]
[1725040796458,10.59484256,2467.2,2467.1,0.41142607]
[1725040797465,6.13591256,2467.2,2467.1,0.41142607]
[1725040798156,11.60818256,2467.2,2467.1,0.00607607]
[1725040798366,15.10818256,2467.2,2467.1,0.00607607]
[1725040800461,14.09484256,2467.2,2467.1,0.00607607]
[1725040802771,15.10818256,2467.2,2467.1,0.00607607]
[1725040802972,15.10818256,2467.2,2466.2,5.2805745]
[1725040802973,19.68951256,2467.2,2466.2,5.2805745]
[1725040803160,0.40548,2466.3,2466.2,3.2078]
[1725040803365,3.90542,2466.7,2466.5,0.40544]
[1725040803668,4.02790187,2466.5,2466.4,0.40546]
[1725040804069,1.43587553,2466.5,2466.4,0.40546]
[1725040804576,6.06699618,2466.5,2466.4,0.40546]
[1725040805773,6.06699618,2466.5,2466.3,0.40548]
[1725040805774,6.47245618,2466.5,2466.3,0.40548]
[1725040806068,0.79196,2466.4,2466.3,0.40548]
[1725040806272,0.7663,2466.4,2466.3,0.40548]
[1725040806464,6.73135285,2466.4,2466.3,0.40548]
[1725040806861,0.40535,2467.1,2466.6,1.01357]
[1725040807064,1.43587553,2467.1,2467.0,0.40535]
[1725040807467,5.7687445,2467.1,2467.0,0.40535]
[1725040807668,4.33286897,2467.1,2467.0,5.47237]
[1725040807868,4.33286897,2467.1,2467.0,4.45895]
[1725040808073,4.33286897,2467.1,2467.0,6.48579]
[1725040808277,3.71102184,2467.6,2467.5,0.40528]
[1725040808278,0.59082184,2467.6,2467.5,0.40528]
[1725040808574,6.0747283,2467.6,2467.5,0.40528]
[1725040808776,6.0747283,2467.6,2467.5,7.66588]
[1725040808777,4.25905277,2467.6,2467.5,7.66588]
[1725040808963,0.00607607,2467.6,2467.5,7.66588]
[1725040809163,0.00607607,2467.6,2467.5,4.45808]
[1725040809377,13.72391655,2467.6,2467.0,4.2668245]
[1725040809558,0.4053,2467.4,2467.1,0.60083428]
[1725040809759,9.67111655,2467.6,2467.0,3.2078]
[1725040809959,0.4053,2467.4,2467.2,0.40533]
[1725040810161,4.46179345,2467.5,2467.0,3.61316]
[1725040810364,3.5,2467.2,2466.7,4.2668245]
[1725040810562,0.40536,2467.1,2466.8,1.00648864]
[1725040810868,3.5,2467.0,2466.8,0.4054]
[1725040811268,0.4054,2466.8,2466.5,0.40544]
[1725040811578,5.06900825,2466.7,2466.4,3.61326]
[1725040811880,5.43700825,2466.7,2466.5,0.40544]
[1725040812068,6.87288378,2466.7,2466.6,0.40543]
[1725040812370,4.68220825,2466.7,2466.6,1.00678354]
[1725040812571,3.868,2467.0,2466.7,0.40541]
[1725040812776,4.69231048,2466.9,2466.7,3.2078]
[1725040812978,0.40539,2466.9,2466.7,3.2078]
[1725040813173,1.84126553,2466.9,2466.7,3.2078]
[1725040813375,11.84052048,2466.8,2466.3,1.0590245]
[1725040813679,5.05972048,2466.8,2466.4,1.00693644]
[1725040813873,6.49559601,2466.8,2466.4,0.40545]
[1725040814066,6.09019601,2466.8,2466.4,0.40545]
[1725040814269,6.09019601,2466.8,2466.5,0.40544]
[1725040814574,6.49559601,2466.8,2466.4,3.2078]
[1725040814780,6.49559601,2466.8,2466.5,0.6014126]
[1725040814983,6.49559601,2466.8,2466.4,3.61326]
[1725040815276,5.72279601,2466.8,2466.7,0.40542]
[1725040815578,5.72279601,2466.8,2466.7,4.21455615]
[1725040815770,4.28692048,2466.8,2466.7,0.40542]
[1725040815969,4.28692048,2466.8,2466.7,1.00675754]
[1725040816175,4.28692048,2466.8,2466.7,1.41819778]
[1725040816380,4.28692048,2466.8,2466.7,1.00675754]
[1725040816871,4.28692048,2466.8,2466.7,6.34534621]
[1725040817078,4.28692048,2466.8,2466.7,5.47183745]
[1725040817270,4.28692048,2466.8,2466.7,6.34538289]
[1725040817869,4.28692048,2466.8,2466.7,7.40440739]
[1725040818068,4.127,2467.5,2467.4,0.4053]
[1725040818269,6.9214227,2467.6,2466.7,16.60724337]
[1725040818270,0.2136227,2467.6,2467.5,0.40528]
[1725040818473,0.00607607,2467.6,2467.5,0.40528]
[1725040818670,0.00607607,2467.6,2467.5,17.26848985]
[1725040818671,6.07e-06,2467.6,2467.5,17.26848985]
[1725040818873,6.07e-06,2467.6,2467.5,9.06078745]
[1725040819072,6.07e-06,2467.6,2467.5,13.40250282]
[1725040819276,6.07e-06,2467.6,2467.5,11.51755824]
[1725040819475,6.07e-06,2467.6,2467.5,13.40227142]
[1725040820175,5.80872841,2467.6,2467.5,1.41719344]
[1725040820482,5.80872841,2467.6,2467.5,0.60083881]
[1725040820682,6.21399841,2467.6,2467.5,0.60083881]
[1725040820891,0.4053,2467.4,2467.3,0.00607607]
[1725040821480,0.40533,2467.3,2467.0,3.61316]
[1725040821678,3.5,2467.2,2467.0,3.61316]
[1725040821980,4.54265718,2467.2,2467.0,3.61316]
[1725040822284,5.97853271,2467.2,2467.0,3.61316]
[1725040822478,5.97853271,2467.2,2467.1,0.40535]
[1725040822784,0.76090607,2467.6,2467.4,0.4053]
[1725040823080,4.65607146,2467.4,2467.3,3.61311]
[1725040823485,1.43587553,2467.4,2467.3,3.61311]
[1725040823774,1.43587553,2467.4,2467.3,14.267025]
[1725040823775,4.22737894,2467.4,2467.3,14.267025]
[1725040823980,6.07e-06,2467.6,2467.5,0.40528]
[1725040824279,6.07e-06,2467.6,2467.5,1.006395]
[1725040824576,6.07e-06,2467.6,2467.5,6.072415]
[1725040824881,6.07e-06,2467.6,2467.5,6.48355362]
[1725040825078,6.07e-06,2467.6,2467.5,6.48357343]
[1725040825383,6.07e-06,2467.6,2467.5,6.48334787]
[1725040825779,6.07e-06,2467.6,2467.5,7.35621932]
[1725040825975,6.07e-06,2467.6,2467.5,21.76834858]
[1725040826174,6.07e-06,2467.6,2467.5,25.12084786]
[1725040826370,6.07e-06,2467.6,2467.5,24.32422067]
[1725040826571,6.07e-06,2467.6,2467.5,27.23887115]
[1725040826776,0.40514,2468.4,2468.3,0.40515]
[1725040826976,1.43587553,2468.4,2468.3,0.40515]
[1725040827196,5.96418322,2468.4,2468.3,0.40515]
[1725040827484,0.3784,2468.5,2468.4,0.40514]
[1725040827780,0.3784,2468.5,2468.3,0.40515]
[1725040827781,1.81427553,2468.5,2468.3,0.40515]
[1725040827984,6.21781375,2468.5,2468.3,0.40515]
[1725040828190,6.62293375,2468.5,2468.3,0.40514]
[1725040828384,6.62293375,2468.5,2468.2,0.40516]
[1725040828385,0.40514,2468.4,2468.2,0.40516]
[1725040828588,0.40517,2468.2,2468.1,3.2078]
[1725040828887,6.20923096,2468.2,2467.9,0.40521]
[1725040829384,5.80405096,2468.2,2468.1,0.40519]
[1725040830777,0.3784,2468.5,2468.1,4.052]
[1725040830975,1.81427553,2468.5,2468.4,0.40514]
[1725040831184,5.86547553,2468.5,2468.2,3.2078]
[1725040831383,6.91681773,2468.5,2468.2,3.61296]
[1725040831886,0.40515,2468.4,2468.2,3.2078]
[1725040832290,4.35521077,2468.3,2468.2,3.2078]
[1725040832773,9.8422863,2468.3,2468.2,3.2078]
[1725040832973,10.2474363,2468.3,2468.2,3.2078]
[1725040833381,9.8422863,2468.3,2467.8,3.2078]
[1725040833580,5.7910863,2468.3,2467.8,4.22087]
[1725040833783,5.7910863,2468.3,2468.2,0.40517]
[1725040834880,4.35521077,2468.3,2468.2,0.40517]
[1725040835090,0.00607607,2468.7,2468.6,0.4051]
[1725040835392,1.4419516,2468.7,2468.6,0.4051]
[1725040836589,5.85769585,2468.7,2468.6,0.4051]
[1725040837086,6.26279585,2468.7,2468.5,3.61291]
[1725040837288,6.26279585,2468.7,2468.6,0.4051]
[1725040837483,5.85769585,2468.7,2468.6,0.4051]
[1725040839089,4.42182032,2468.7,2468.6,0.4051]
[1725040840596,5.85769585,2468.7,2468.6,0.4051]
[1725040840798,5.85769585,2468.7,2468.5,3.6129]
[1725040841093,0.77671,2468.6,2468.5,0.40511]
[1725040841302,0.3716,2468.6,2468.4,0.40513]
[1725040841601,0.40515,2468.3,2468.2,3.2078]
[1725040841897,0.40515,2468.3,2467.9,3.61301]
[1725040841898,0.40519,2468.1,2467.9,3.61301]
[1725040842100,0.7337,2468.2,2467.9,3.2078]
[1725040842286,4.91181162,2468.0,2467.9,3.613]
[1725040842487,4.50089327,2468.1,2468.0,0.4052]
[1725040842688,1.80117553,2468.2,2467.9,4.22085]
[1725040842689,1.80117553,2468.2,2468.1,0.40519]
[1725040842995,6.3125069,2468.2,2468.1,0.40519]
[1725040843695,0.40519,2468.1,2467.9,0.40521]
[1725040843891,6.3125069,2468.2,2468.1,0.40519]
[1725040844090,1.80117553,2468.2,2468.1,0.40519]
[1725040844300,10.30894876,2468.2,2468.1,0.40519]
[1725040845788,10.71411876,2468.2,2468.0,3.61299]
[1725040845992,0.40523,2467.9,2467.6,3.2078]
[1725040846194,1.01301,2468.0,2467.6,3.2078]
[1725040846501,0.40525,2467.7,2467.5,0.40528]
[1725040846703,0.3945,2467.6,2467.5,0.40528]
[1725040846993,0.3945,2467.6,2467.4,0.4053]
[1725040846994,5.02810312,2467.6,2467.4,0.4053]
[1725040847200,6.46397865,2467.6,2467.4,0.4053]
[1725040847785,6.05869865,2467.6,2467.3,3.2078]
[1725040847995,6.05869865,2467.6,2467.5,0.40528]
[1725040848297,0.3804,2467.9,2467.8,0.40523]
[1725040848507,1.43587553,2467.9,2467.8,0.40523]
[1725040848715,5.69584901,2467.9,2467.8,0.40523]
[1725040849011,0.7749,2468.2,2468.1,0.40519]
[1725040849198,2.21077553,2468.2,2468.1,0.40519]
[1725040849393,6.88133622,2468.2,2468.1,0.40519]
[1725040849597,6.88133622,2468.2,2467.9,3.2078]
[1725040849800,0.40519,2468.1,2467.6,4.22094]
[1725040849993,6.88133622,2468.2,2468.0,0.40519]
[1725040849994,7.28651622,2468.2,2468.0,0.40519]
[1725040850302,7.28651622,2468.2,2467.6,4.22094]
[1725040850303,2.21077553,2468.2,2467.7,1.01313]
[1725040850490,2.21077553,2468.2,2468.1,0.40519]
[1725040850491,1.83037553,2468.2,2468.1,0.40519]
[1725040850889,6.40715662,2468.2,2468.1,0.40519]
[1725040851094,6.40715662,2468.2,2467.9,3.2078]
[1725040851405,0.40519,2468.1,2467.9,3.61301]
[1725040851891,4.57678109,2468.0,2467.9,3.61301]
[1725040852293,4.57678109,2468.0,2467.9,7.66501]
[1725040853800,1.43587553,2468.0,2467.9,3.61301]
[1725040854105,6.13702872,2468.0,2467.6,3.2078]
[1725040854319,0.374,2467.9,2467.8,0.40523]
[1725040854500,0.374,2467.9,2467.6,3.2078]
[1725040854701,6.51102872,2467.9,2467.7,0.40524]
[1725040854901,6.88802872,2467.9,2467.7,0.40524]
[1725040855110,7.29325872,2467.9,2467.7,0.40524]
[1725040855603,0.40526,2467.7,2467.5,0.40527]
[1725040855906,4.71022026,2467.6,2467.3,3.2078]
[1725040856108,5.11550026,2467.6,2467.4,0.40529]
[1725040856411,6.55136579,2467.6,2467.4,0.40529]
[1725040856610,6.55136579,2467.6,2467.3,3.2078]
[1725040856611,6.75354506,2467.6,2467.5,0.40528]
[1725040856810,0.40528,2467.5,2467.3,3.2078]
[1725040857106,4.66131367,2467.4,2467.3,3.61312]
[1725040857498,4.66131367,2467.4,2467.3,4.62642]
[1725040857697,4.66131367,2467.4,2467.3,3.61312]
[1725040857915,6.0971892,2467.4,2467.3,3.61312]
[1725040858807,4.66131367,2467.4,2467.3,8.67922]
[1725040859003,0.3807,2467.6,2467.5,0.40528]
[1725040859206,4.127,2468.0,2467.9,0.40522]
[1725040859407,0.40522,2467.9,2467.8,0.40522]
[1725040859611,0.40522,2467.9,2467.7,0.40524]
[1725040859612,4.39456997,2467.8,2467.7,0.40524]
[1725040859815,1.84109553,2467.9,2467.8,0.40523]
[1725040860110,6.33262003,2467.9,2467.8,0.40523]
[1725040860612,0.40524,2467.8,2467.6,3.2078]
[1725040860909,0.40526,2467.7,2467.5,0.40527]
[1725040861210,0.40526,2467.7,2467.3,3.2078]
[1725040861211,5.28458315,2467.7,2467.3,3.2078]
[1725040861402,0.40527,2467.6,2467.3,3.2078]
[1725040861602,0.3755,2467.5,2467.4,0.40528]
[1725040861806,4.88952315,2467.5,2467.4,0.40528]
[1725040862006,0.4053,2467.4,2467.3,3.61311]
[1725040862213,6.73068868,2467.5,2467.4,0.4053]
[1725040862404,5.1042626,2467.4,2467.3,3.61311]
[1725040862600,0.4053,2467.4,2467.3,3.2078]
[1725040862805,0.40534,2467.2,2466.9,3.2078]
[1725040863102,4.35412891,2467.1,2467.0,0.60127782]
[1725040863306,4.75947891,2467.1,2466.9,3.61317]
[1725040863605,6.16710444,2467.1,2466.9,3.61317]
[1725040863805,5.79000444,2467.1,2467.0,0.40537]
[1725040864305,5.79000444,2467.1,2466.9,3.61317]
[1725040864505,5.79000444,2467.1,2467.0,0.40537]
[1725040865111,5.79000444,2467.1,2467.0,1.00668703]
[1725040865314,5.79000444,2467.1,2467.0,0.40537]
[1725040865504,5.79000444,2467.1,2467.0,1.00667638]
[1725040865810,5.79000444,2467.1,2467.0,1.41879]
[1725040866204,5.79000444,2467.1,2467.0,0.40537]
[1725040866405,5.79000444,2467.1,2467.0,1.41879]
[1725040866606,0.00607607,2467.3,2467.2,0.40533]
[1725040866802,1.4419516,2467.3,2467.2,0.40533]
[1725040867019,6.0100402,2467.3,2467.2,0.40533]
[1725040867308,0.00607607,2467.3,2467.2,0.40533]
[1725040868207,0.00607607,2467.3,2467.2,5.47147]
[1725040868400,0.00607607,2467.3,2467.2,8.67927]
[1725040868601,1.4419516,2467.3,2467.2,0.40533]
[1725040868812,6.18145236,2467.3,2467.2,0.40533]
[1725040869010,0.40535,2467.2,2467.1,0.40533]
[1725040869211,0.40536,2467.1,2467.0,0.40536]
[1725040869610,6.05926661,2467.1,2467.0,0.40536]
[1725040870006,6.05926661,2467.1,2466.9,3.2078]
[1725040870309,0.40542,2466.7,2466.3,1.05698006]
[1725040870614,0.40545,2466.5,2466.3,0.40548]
[1725040870813,4.67,2466.4,2466.2,3.2078]
[1725040871013,0.40548,2466.3,2466.2,3.2078]
[1725040871309,4.6381777,2466.3,2466.2,3.2078]
[1725040871509,6.07405323,2466.3,2466.2,3.2078]
[1725040871718,6.47953323,2466.3,2466.2,3.2078]
[1725040872010,6.07405323,2466.3,2466.2,3.6133]
[1725040872416,0.19260756,2466.9,2466.2,8.68145]
[1725040872606,1.80597553,2466.9,2466.7,0.40541]
[1725040872806,4.28723433,2466.8,2466.7,0.40541]
[1725040873313,5.72310986,2466.8,2466.7,0.40541]
[1725040873903,5.72310986,2466.8,2466.4,0.3923]
[1725040874110,5.72310986,2466.8,2466.7,0.40542]
[1725040874615,0.00607607,2467.3,2466.7,4.45902]
[1725040874817,0.00607607,2467.3,2467.0,0.40536]
[1725040874818,1.8472716,2467.3,2467.0,0.40536]
[1725040875019,4.31701715,2467.1,2467.0,0.40536]